bitfinex/quotes_SOLUSD_20260310
["timestamp","ask_amount","ask_price","bid_price","bid_amount"]
[1773175050386,11.61507636,86.095,86.073,0.98861499]
[1773175050587,11.61453675,86.099,86.081,0.98861499]
[1773175051204,11.61453675,86.099,86.056,0.14216157]
[1773175051205,1.06557876,86.098,86.06,4.14654657]
[1773175051372,1.06557876,86.098,86.06,15.76630557]
[1773175051785,1.06557876,86.098,86.06,4.14654657]
[1773175052093,1.06557876,86.098,86.06,15.76627932]
[1773175052295,1.06557876,86.096,86.06,15.76627932]
[1773175052867,1.06557876,86.096,86.061,11.61966512]
[1773175053093,1.06557876,86.096,86.062,0.98861499]
[1773175054399,1.06557876,86.094,86.064,0.98861499]
[1773175055498,11.61588588,86.089,86.065,11.61912507]
[1773175055699,11.61588588,86.089,86.066,0.98861499]
[1773175059904,11.61534619,86.093,86.068,0.98861499]
[1773175060101,11.61534619,86.093,86.067,11.61885507]
[1773175060102,11.61453675,86.099,86.071,0.98861499]
[1773175061605,12.68011551,86.099,86.071,0.98861499]
[1773175061994,12.68011551,86.099,86.073,0.98861499]
[1773175065003,1.06557876,86.098,86.075,0.98861499]
[1773175065703,1.06557876,86.098,86.061,0.98861499]
[1773175065914,1.06557876,86.098,86.063,0.98861499]
[1773175067110,1.02719126,86.087,86.063,0.98861499]
[1773175068796,11.61629068,86.086,86.063,0.98861499]
[1773175068996,1.02719126,86.085,86.063,0.98861499]
[1773175070005,1.45158106,86.113,86.071,1.02713593]
[1773175070211,58.05225006,86.13,86.071,1.02713593]
[1773175070212,1.09269584,86.109,86.071,1.02713593]
[1773175070505,1.09269584,86.099,86.071,1.02713593]
[1773175071114,1.09269584,86.097,86.071,1.02713593]
[1773175073214,1.09269584,86.095,86.071,1.02713593]
[1773175075216,1.09269584,86.113,86.081,1.02713593]
[1773175075511,1.09269584,86.113,86.091,1.02713593]
[1773175077014,1.09269584,86.111,86.091,1.02713593]
[1773175078017,1.09269584,86.111,86.09,4.14654657]
[1773175078312,1.09269584,86.128,86.1,4.14654657]
[1773175078511,11.61076085,86.127,86.11,4.14654657]
[1773175078912,13.05877026,86.149,86.12,5.1736825]
[1773175079114,11.60779579,86.149,86.13,2.32e-06]
[1773175080518,11.60725685,86.153,86.13,2.32e-06]
[1773175081013,1.09269584,86.152,86.13,2.32e-06]
[1773175081517,1.09269584,86.152,86.127,1.02713593]
[1773175082321,1.09269584,86.139,86.09,4.14654657]
[1773175082539,1.09269584,86.109,86.08,4.14654657]
[1773175082825,1.09269584,86.119,86.091,1.02713593]
[1773175084600,11.61197426,86.118,86.092,11.61548111]
[1773175084925,11.61197426,86.118,86.093,1.02713593]
[1773175085128,1.09269584,86.117,86.093,1.02713593]
[1773175086429,1.09269584,86.109,86.08,11.61704526]
[1773175086931,1.09269584,86.107,86.08,12.64418119]
[1773175088523,1.09269584,86.107,86.081,1.02713593]
[1773175089111,1.09269584,86.105,86.075,1.02713593]
[1773175090932,11.61359254,86.106,86.075,1.02713593]
[1773175090933,12.70655814,86.104,86.075,1.02713593]
[1773175091430,1.09269584,86.103,86.075,1.02713593]
[1773175091628,1.09269584,86.099,86.075,1.02713593]
[1773175093623,1.09269584,86.097,86.066,1.02713593]
[1773175094839,1.09269584,86.095,86.066,1.02713593]
[1773175098427,11.61521128,86.094,86.066,1.02713593]
[1773175098628,1.09269584,86.093,86.066,1.02713593]
[1773175098839,1.09269584,86.093,86.068,1.02713593]
[1773175101046,1.10349781,86.091,86.068,1.02713593]
[1773175101940,1.10349781,86.089,86.061,1.14849925]
[1773175102140,1.10349781,86.089,86.071,1.14849925]
[1773175102647,40.65418389,86.092,86.071,1.14849925]
[1773175104242,30.14220059,86.092,86.071,1.14849925]
[1773175104444,1.10349781,86.089,86.065,1.14849925]
[1773175106255,12.71951862,86.088,86.065,1.14849925]
[1773175106634,1.10349781,86.087,86.065,1.14849925]
[1773175107327,1.10349781,86.093,86.067,1.14849925]
[1773175111291,1.10349781,86.091,86.067,1.14849925]
[1773175113877,1.10349781,86.089,86.062,1.14849925]
[1773175114564,4.1464592,86.1,86.061,11.6195946]
[1773175114565,1.10349781,86.1,86.081,1.14849925]
[1773175115575,1.10349781,86.108,86.081,1.14849925]
[1773175115782,11.61345767,86.107,86.081,1.14849925]
[1773175116079,11.61345767,86.107,86.083,1.14849925]
[1773175119381,1.10349781,86.106,86.083,1.14849925]
[1773175121292,1.10349781,86.104,86.083,1.14849925]
[1773175123803,1.10349781,86.102,86.083,1.14849925]
[1773175123991,1.10349781,86.102,86.08,4.1464592]
[1773175124192,1.10349781,86.108,86.081,1.14849925]
[1773175124704,11.613212,86.109,86.081,1.14849925]
[1773175125381,12.71670981,86.109,86.081,1.14849925]
[1773175125581,11.613212,86.109,86.081,1.14849925]
[1773175127793,11.613212,86.109,86.08,4.1464592]
[1773175127794,1.17946563,86.109,86.083,1.16551454]
[1773175130999,11.6133228,86.108,86.084,11.61656056]
[1773175131199,1.4738209,86.119,86.091,1.17817364]
[1773175131401,1.4738209,86.119,86.084,40.65796198]
[1773175131402,1.4738209,86.119,86.101,1.17817364]
[1773175132997,11.611115,86.125,86.103,1.02577277]
[1773175133203,11.61061136,86.129,86.103,1.02577277]
[1773175133401,1.10152692,86.145,86.12,4.1464592]
[1773175133604,1.10152692,86.145,86.121,1.02577277]
[1773175134791,1.10152692,86.144,86.121,1.02577277]
[1773175136494,11.60833478,86.145,86.12,4.1464592]
[1773175136495,11.60833478,86.145,86.123,1.03234891]
[1773175136697,12.19817554,86.149,86.131,1.03449439]
[1773175137106,1.10152692,86.148,86.131,1.03449439]
[1773175137303,1.10152692,86.148,86.126,1.03449439]
[1773175137512,1.10152692,86.148,86.12,5.18095359]
[1773175137706,1.10152692,86.139,86.11,4.1464592]
[1773175137906,1.10152692,86.139,86.111,1.03662164]
[1773175139002,1.10152692,86.137,86.112,11.61278335]
[1773175139989,1.10152692,86.137,86.096,0.14216157]
[1773175139990,1.10152692,86.137,86.101,11.61417047]
[1773175140803,1.10152692,86.137,86.101,12.65700499]
[1773175141009,1.10152692,86.137,86.102,1.04283452]
[1773175141713,11.60954769,86.136,86.111,1.04486409]
[1773175142015,11.60813068,86.147,86.13,4.1464592]
[1773175142199,11.60813068,86.147,86.13,5.19132329]
[1773175142395,1.10152692,86.146,86.121,1.04486409]
[1773175145409,1.10152692,86.165,86.141,0.46049623]
[1773175145614,1.10152692,86.165,86.15,4.1464592]
[1773175146815,11.60577503,86.164,86.15,4.1464592]
[1773175147305,1.10152692,86.165,86.15,4.1464592]
[1773175147501,1.10152692,86.175,86.152,0.46521018]
[1773175147711,11.60375497,86.179,86.152,0.46521018]
[1773175147909,11.60375497,86.179,86.16,4.1464592]
[1773175148124,1.10152692,86.189,86.17,4.1464592]
[1773175148921,1.10152692,86.189,86.171,11.60483225]
[1773175149314,0.2,86.19,86.172,0.4698213]
[1773175149629,0.2,86.2,86.181,0.4698213]
[1773175149834,0.48675738,86.195,86.18,4.1464592]
[1773175150710,0.2,86.2,86.181,0.14216157]
[1773175150933,0.2,86.22,86.191,11.744301]
[1773175151115,0.2,86.22,86.2,4.1464592]
[1773175153637,1.404227,86.22,86.2,4.1464592]
[1773175155219,1.404227,86.22,86.2,15.74729812]
[1773175155624,1.404227,86.22,86.2,15.73438155]
[1773175157025,0.2,86.22,86.2,15.73438155]
[1773175161338,1.204227,86.219,86.2,45.73438155]
[1773175165728,0.2,86.22,86.2,45.73438155]
[1773175166434,1.204227,86.217,86.2,30.0]
[1773175166736,1.404227,86.22,86.201,11.60079349]
[1773175166939,1.404227,86.22,86.202,30.0]
[1773175168230,1.404227,86.22,86.21,4.13354263]
[1773175168231,0.2,86.22,86.21,4.13354263]
[1773175168435,0.2,86.22,86.21,34.13354263]
[1773175170653,28.98937115,86.239,86.21,34.13354263]
[1773175170654,1.204227,86.252,86.212,0.14216157]
[1773175170939,104.3,86.284,86.212,0.14216157]
[1773175170940,1.204227,86.265,86.24,4.13354263]
[1773175171525,1.204227,86.277,86.226,0.14216157]
[1773175171728,12.7957147,86.271,86.25,4.13354263]
[1773175172941,12.7957147,86.271,86.25,34.13354263]
[1773175173628,1.204227,86.265,86.25,34.13354263]
[1773175173834,8.50490228,86.264,86.25,34.13354263]
[1773175176246,1.204227,86.263,86.25,34.13354263]
[1773175183439,1.204227,86.268,86.25,34.13354263]
[1773175183639,1.204227,86.274,86.251,11.59406847]
[1773175183952,1.204227,86.274,86.251,41.59406847]
[1773175185055,11.59111193,86.273,86.251,41.59406847]
[1773175185255,1.204227,86.272,86.251,41.59406847]
[1773175188150,1.21164548,86.27,86.251,41.59406847]
[1773175188736,1.21164548,86.279,86.26,4.13354263]
[1773175188936,1.21164548,86.279,86.26,34.13354263]
[1773175189448,1.21164548,86.279,86.26,30.0]
[1773175191462,1.204227,86.277,86.26,30.0]
[1773175191661,1.204227,86.277,86.25,4.13354263]
[1773175191965,1.204227,86.277,86.251,11.59406847]
[1773175193666,28.97315591,86.287,86.25,4.13354263]
[1773175193667,1.204227,86.275,86.253,11.59379963]
[1773175194069,1.204227,86.275,86.26,4.13354263]
[1773175194453,1.204227,86.275,86.252,30.0]
[1773175197178,1.204227,86.273,86.252,30.0]
[1773175197348,1.204227,86.269,86.231,0.14216157]
[1773175197550,1.204227,86.269,86.24,4.13354263]
[1773175200374,1.204227,86.267,86.24,4.13354263]
[1773175200962,1.204227,86.267,86.215,28.99717527]
[1773175201268,1.204227,86.259,86.23,4.13354263]
[1773175201467,1.204227,86.259,86.24,4.13354263]
[1773175201763,1.204227,86.259,86.23,4.13354263]
[1773175202350,1.204227,86.257,86.233,30.0]
[1773175203171,1.204227,86.257,86.232,11.59654395]
[1773175204252,1.204227,86.257,86.23,4.13354263]
[1773175204946,1.204227,86.255,86.23,4.13354263]
[1773175205150,1.204227,86.249,86.21,4.13354263]
[1773175205866,1.204227,86.249,86.22,4.13354263]
[1773175206657,1.204227,86.249,86.21,4.13354263]
[1773175208770,1.204227,86.247,86.21,4.13354263]
[1773175208956,1.204227,86.239,86.205,11.60012439]
[1773175209155,1.204227,86.239,86.21,4.13354263]
[1773175210972,4.13354263,86.24,86.21,4.13354263]
[1773175210973,11.59581622,86.238,86.21,4.13354263]
[1773175211173,1.204227,86.237,86.21,4.13354263]
[1773175211468,1.204227,86.237,86.209,11.59965331]
[1773175213064,1.204227,86.235,86.201,11.60079349]
[1773175213774,1.204227,86.235,86.22,4.13354263]
[1773175215255,1.204227,86.233,86.22,4.13354263]
[1773175216357,1.204227,86.233,86.185,1.1322652]
[1773175216558,1.11211604,86.231,86.187,1.1322652]
[1773175216763,1.11211604,86.231,86.2,4.13354263]
[1773175217489,1.11211604,86.229,86.22,4.13354263]
[1773175217786,1.11211604,86.229,86.22,4.13284074]
[1773175218160,1.11211604,86.229,86.201,1.1322652]
[1773175218779,1.11211604,86.229,86.22,4.13284074]
[1773175219080,1.11211604,86.229,86.201,1.1322652]
[1773175219261,11.59716101,86.228,86.201,1.1322652]
[1773175219456,1.21411964,86.227,86.201,1.1322652]
[1773175219660,1.21411964,86.227,86.22,4.13284074]
[1773175220081,1.21411964,86.227,86.201,1.1322652]
[1773175220395,1.21411964,86.244,86.22,4.13284074]
[1773175220681,1.21411964,86.255,86.231,1.19555847]
[1773175220863,1.21411964,86.255,86.24,4.13284074]
[1773175221678,1.21411964,86.252,86.23,4.13284074]
[1773175221872,1.21411964,86.252,86.214,11.5989402]
[1773175222077,1.21411964,86.25,86.23,4.13284074]
[1773175222979,1.21411964,86.25,86.221,1.19555847]
[1773175225787,1.21411964,86.248,86.221,1.19555847]
[1773175227280,1.21411964,86.246,86.221,1.19555847]
[1773175227479,1.21411964,86.246,86.222,1.19555847]
[1773175230594,11.59460618,86.247,86.231,1.19555847]
[1773175231160,5.3,86.24,86.231,1.19555847]
[1773175232873,5.3,86.24,86.224,1.19555847]
[1773175233184,1.21411964,86.238,86.21,5.32839921]
[1773175233370,1.21411964,86.238,86.211,1.19555847]
[1773175233569,1.21411964,86.238,86.22,4.13284074]
[1773175233772,5.3,86.24,86.221,1.19555847]
[1773175234282,16.89560159,86.24,86.221,1.19555847]
[1773175236167,16.89560159,86.24,86.223,1.19555847]
[1773175238288,1.21411964,86.239,86.216,1.19555847]
[1773175240676,11.59581622,86.238,86.216,1.19555847]
[1773175241494,12.80993586,86.238,86.216,1.19555847]
[1773175241696,11.59581622,86.238,86.216,1.19555847]
[1773175241871,5.3,86.24,86.203,1.19555847]
[1773175241872,1.21411964,86.235,86.203,1.19555847]
[1773175243388,1.21411964,86.233,86.203,1.19555847]
[1773175243795,1.21411964,86.231,86.205,1.19555847]
[1773175245895,1.21411964,86.229,86.205,1.19555847]
[1773175246403,1.21411964,86.229,86.21,4.13284074]
[1773175246691,11.59689203,86.23,86.211,1.19555847]
[1773175250386,11.5963541,86.234,86.213,1.1700806]
[1773175251383,10.14949697,86.239,86.221,1.1700806]
[1773175253407,11.37637569,86.239,86.221,1.1700806]
[1773175254186,11.37637569,86.239,86.221,12.76814319]
[1773175255907,11.37637569,86.239,86.222,1.1700806]
[1773175258603,1.22687872,86.238,86.222,1.1700806]
[1773175261514,11.59595069,86.237,86.222,1.1700806]
[1773175261713,12.82282941,86.237,86.222,1.1700806]
[1773175262097,1.22687872,86.236,86.211,1.1700806]
[1773175262493,1.44952745,86.235,86.202,1.1700806]
[1773175262698,1.22687872,86.234,86.202,1.1700806]
[1773175263612,1.22687872,86.232,86.204,1.1700806]
[1773175265019,1.44949383,86.237,86.204,1.1700806]
[1773175265217,1.15630512,86.24,86.231,1.1700806]
[1773175265397,11.59285879,86.26,86.234,1.1700806]
[1773175265602,1.22687872,86.259,86.234,1.1700806]
[1773175267617,1.22687872,86.257,86.234,1.1700806]
[1773175269718,1.22687872,86.257,86.216,1.1700806]
[1773175269919,1.22687872,86.239,86.211,1.1700806]
[1773175270221,1.22687872,86.239,86.221,1.1700806]
[1773175271825,11.59581622,86.238,86.221,1.1700806]
[1773175274127,1.22687872,86.237,86.215,1.1700806]
[1773175275306,11.59608516,86.236,86.216,1.1700806]
[1773175277111,7.4,86.23,86.216,1.1700806]
[1773175277313,11.59608516,86.236,86.216,1.1700806]
[1773175278631,11.5956532,86.24,86.218,1.1700806]
[1773175279020,1.22687872,86.239,86.218,1.1700806]
[1773175279821,1.22687872,86.239,86.221,1.23700194]
[1773175280025,1.15585295,86.244,86.223,1.23700194]
[1773175284134,1.44932577,86.247,86.231,1.23700194]
[1773175284317,11.59431823,86.25,86.231,1.23700194]
[1773175287113,7.4,86.25,86.233,1.23700194]
[1773175287533,11.59374865,86.254,86.233,1.23700194]
[1773175288820,30.42908094,86.267,86.232,11.59662306]
[1773175288821,1.15585295,86.266,86.241,1.23700194]
[1773175289025,1.15585295,86.271,86.251,1.23700194]
[1773175289340,12.74728981,86.271,86.251,1.23700194]
[1773175290721,1.15585295,86.277,86.26,4.13252138]
[1773175291134,11.58983994,86.283,86.261,1.23700194]
[1773175291547,1.15585295,86.282,86.261,1.23700194]
[1773175294425,1.15585295,86.28,86.261,1.23700194]
[1773175294745,1.15585295,86.28,86.24,4.13252138]
[1773175294746,1.15585295,86.279,86.247,11.59456396]
[1773175295422,1.15585295,86.279,86.25,4.13252138]
[1773175296437,1.15585295,86.276,86.25,4.13252138]
[1773175296839,1.15585295,86.276,86.251,12.83107041]
[1773175297040,1.15585295,86.276,86.252,1.23700194]
[1773175297236,7.4,86.27,86.252,1.23700194]
[1773175297438,1.15585295,86.269,86.252,1.23700194]
[1773175298740,7.4,86.27,86.252,1.23700194]
[1773175300347,7.4,86.27,86.253,11.59379963]
[1773175300647,7.4,86.27,86.254,1.23700194]
[1773175301542,11.59164937,86.269,86.254,1.23700194]
[1773175301852,1.15585295,86.268,86.254,1.23700194]
[1773175304228,1.15585295,86.266,86.25,4.13252138]
[1773175304537,1.15585295,86.266,86.251,1.23700194]
[1773175309839,11.59218686,86.265,86.251,1.23700194]
[1773175310038,1.15585295,86.266,86.251,1.23700194]
[1773175310550,11.59174379,86.269,86.252,1.24492837]
[1773175310749,1.2187269,86.271,86.252,1.24492837]
[1773175311231,11.59116283,86.273,86.254,1.24492837]
[1773175312346,1.2187269,86.274,86.254,1.24492837]
[1773175312646,1.2187269,86.286,86.261,1.24492837]
[1773175312847,1.2187269,86.286,86.271,1.24492837]
[1773175313345,11.58909697,86.288,86.271,1.24492837]
[1773175314546,1.44845247,86.299,86.281,1.24492837]
[1773175314752,1.2187269,86.309,86.291,1.24492837]
[1773175315355,1.2187269,86.308,86.291,1.24492837]
[1773175316427,1.2187269,86.308,86.286,1.24492837]
[1773175317236,1.2187269,86.299,86.261,12.83765277]
[1773175317439,1.2187269,86.289,86.262,1.24492837]
[1773175320165,1.2187269,86.289,86.264,1.24492837]
[1773175323359,1.2187269,86.289,86.266,1.24492837]
[1773175325865,1.2187269,86.289,86.27,4.13252138]
[1773175326059,1.2187269,86.289,86.271,1.24492837]
[1773175333760,1.2187269,86.289,86.272,11.59124629]
[1773175334879,1.2187269,86.289,86.272,12.83617466]
[1773175338981,12.80704151,86.294,86.275,1.24492837]
[1773175339280,11.58831461,86.294,86.275,1.24492837]
[1773175339477,5.3,86.3,86.281,1.31778488]
[1773175339682,11.58664354,86.307,86.281,1.31778488]
[1773175340461,0.2,86.31,86.301,1.31778488]
[1773175340692,1.21788971,86.335,86.301,1.31778488]
[1773175340858,1.21788971,86.334,86.311,1.31778488]
[1773175341184,1.21788971,86.328,86.306,1.31778488]
[1773175342182,1.21788971,86.326,86.3,4.1257799]
[1773175342372,1.21788971,86.326,86.28,4.1257799]
[1773175342373,1.21788971,86.319,86.29,4.1257799]
[1773175342578,1.21788971,86.319,86.291,1.31778488]
[1773175343882,1.21788971,86.317,86.291,1.31778488]
[1773175344563,1.21788971,86.317,86.293,1.31778488]
[1773175345380,1.21788971,86.317,86.29,4.1257799]
[1773175345862,1.21788971,86.317,86.291,1.31778488]
[1773175346282,11.58533759,86.316,86.291,12.90647895]
[1773175346471,1.21788971,86.315,86.291,12.90647895]
[1773175346778,1.21788971,86.315,86.291,11.58869407]
[1773175347080,1.21788971,86.315,86.292,1.31778488]
[1773175348479,1.21788971,86.313,86.292,1.31778488]
[1773175349982,5.3,86.31,86.292,1.31778488]
[1773175350284,1.21788971,86.309,86.292,1.31778488]
[1773175350486,1.21788971,86.307,86.292,1.31778488]
[1773175351882,11.58641145,86.308,86.292,1.31778488]
[1773175352773,12.80430116,86.308,86.292,1.31778488]
[1773175353382,5.3,86.31,86.294,1.31778488]
[1773175359996,11.58580933,86.313,86.296,1.31778488]
[1773175360379,1.21788971,86.312,86.292,1.31778488]
[1773175360575,1.21788971,86.312,86.29,11.58879917]
[1773175360776,1.21788971,86.312,86.291,1.31778488]
[1773175361395,1.21788971,86.309,86.275,1.31778488]
[1773175361600,1.21788971,86.299,86.27,1.31778488]
[1773175361899,1.21788971,86.299,86.271,1.31778488]
[1773175362479,1.21788971,86.299,86.244,1.15950095]
[1773175362480,1.21788971,86.289,86.251,1.31778488]
[1773175362877,1.21788971,86.289,86.261,1.31778488]
[1773175363495,11.58909697,86.288,86.262,11.59259001]
[1773175363799,1.21788971,86.287,86.263,1.31778488]
[1773175366688,7.4,86.28,86.263,1.31778488]
[1773175367288,7.4,86.28,86.265,1.32722223]
[1773175367491,4.1257799,86.3,86.27,4.1257799]
[1773175367492,1.44845247,86.299,86.27,4.1257799]
[1773175367796,11.58775406,86.298,86.27,4.1257799]
[1773175368184,1.44848604,86.297,86.265,1.32722223]
[1773175368709,11.58775406,86.298,86.266,11.59205248]
[1773175369006,11.58775406,86.298,86.267,1.32722223]
[1773175369206,13.03622331,86.298,86.267,1.32722223]
[1773175369406,1.29152012,86.297,86.267,1.32722223]
[1773175369708,1.29152012,86.289,86.261,1.2377969]
[1773175370188,1.29152012,86.289,86.262,1.2377969]
[1773175373605,1.29152012,86.287,86.262,1.2377969]
[1773175374713,1.29152012,86.287,86.258,1.2377969]
[1773175376319,1.29152012,86.285,86.258,1.2377969]
[1773175379217,1.29152012,86.278,86.258,1.2377969]
[1773175379711,1.29152012,86.278,86.253,12.83149148]
[1773175380217,1.29152012,86.278,86.254,1.2377969]
[1773175380428,1.29152012,86.269,86.249,1.2377969]
[1773175380941,1.29152012,86.269,86.23,3.69383402]
[1773175380942,1.29152012,86.269,86.229,1.2377969]
[1773175381225,4.1257799,86.27,86.2,0.2]
[1773175381226,1.29152012,86.257,86.233,1.2377969]
[1773175383202,1.29152012,86.255,86.233,1.2377969]
[1773175386529,1.29152012,86.253,86.233,1.2377969]
[1773175387635,1.29152012,86.239,86.208,1.2377969]
[1773175387925,4.1257799,86.24,86.21,4.1257799]
[1773175388137,1.44924175,86.252,86.201,1.2377969]
[1773175388138,1.29152012,86.229,86.201,1.2377969]
[1773175388430,1.29152012,86.229,86.202,1.2377969]
[1773175388732,1.29152012,86.227,86.202,1.2377969]
[1773175389608,1.29152012,86.227,86.204,1.2377969]
[1773175390721,12.88895012,86.226,86.204,1.2377969]
[1773175391522,1.29152012,86.225,86.204,1.2377969]
[1773175391832,1.29152012,86.209,86.2,0.2]
[1773175392844,1.29152012,86.209,86.192,1.2377969]
[1773175392845,11.59985152,86.208,86.192,1.2377969]
[1773175393438,1.29152012,86.214,86.194,1.2377969]
[1773175396753,1.44969556,86.225,86.16,0.1]
[1773175396754,4.1257799,86.2,86.16,0.1]
[1773175396936,1.29152012,86.179,86.151,26.22653882]
[1773175397342,1.29152012,86.179,86.141,11.60887382]
[1773175398354,1.29152012,86.177,86.141,11.60887382]
[1773175398743,1.29152012,86.177,86.142,1.2377969]
[1773175400159,1.33330525,86.175,86.144,1.30981641]
[1773175401429,4.1257799,86.18,86.151,1.30981641]
[1773175401753,30.45287052,86.199,86.151,1.30981641]
[1773175401754,1.33330525,86.189,86.151,1.30981641]
[1773175401951,4.13831769,86.18,86.151,1.30981641]
[1773175402255,1.33330525,86.182,86.14,0.1]
[1773175402256,1.33330525,86.169,86.141,1.30981641]
[1773175403845,1.33330525,86.167,86.141,1.30981641]
[1773175404855,1.33330525,86.167,86.143,1.30981641]
[1773175405154,11.60402427,86.177,86.143,1.30981641]
[1773175405455,1.33330525,86.176,86.143,1.30981641]
[1773175406148,12.93759883,86.175,86.145,1.30981641]
[1773175406354,1.33330525,86.174,86.145,1.30981641]
[1773175407340,11.60456291,86.173,86.147,1.30981641]
[1773175407540,12.93786816,86.173,86.147,1.30981641]
[1773175408044,1.33330525,86.172,86.147,1.30981641]
[1773175410467,1.33330525,86.17,86.146,1.30981641]
[1773175410673,1.33330525,86.17,86.13,0.1]
[1773175410674,1.33330525,86.159,86.113,1.30981641]
[1773175410970,1.33330525,86.149,86.115,1.30981641]
[1773175411269,1.33330525,86.139,86.115,1.30981641]
[1773175412342,12.94258338,86.138,86.115,1.30981641]
[1773175412868,12.94258338,86.138,86.116,12.92206036]
[1773175413068,12.94258338,86.138,86.116,11.61224395]
[1773175413249,12.94258338,86.138,86.117,1.30981641]
[1773175413846,1.33330525,86.155,86.121,1.30981641]
[1773175414054,1.33330525,86.139,86.111,12.92273462]
[1773175414344,1.33330525,86.139,86.111,1.30981641]
[1773175414559,1.33330525,86.137,86.11,0.1]
[1773175415572,1.33330525,86.137,86.11,4.23831769]
[1773175416063,1.33330525,86.137,86.12,4.13831769]
[1773175416860,1.33330525,86.137,86.117,1.30981641]
[1773175417668,12.94285294,86.136,86.117,1.30981641]
[1773175418867,1.33330525,86.135,86.117,1.30981641]
[1773175419765,1.33330525,86.135,86.117,12.92186554]
[1773175419957,1.33330525,86.135,86.118,1.30981641]
[1773175421546,11.60833478,86.145,86.118,1.30981641]
[1773175421865,1.33330525,86.129,86.11,0.1]
[1773175422060,1.33330525,86.127,86.11,0.1]
[1773175422260,1.33330525,86.138,86.111,1.30981641]
[1773175422980,1.33330525,86.136,86.111,1.30981641]
[1773175423162,1.33330525,86.134,86.111,1.30981641]
[1773175423983,1.33330525,86.132,86.111,1.30981641]
[1773175425477,16.91042518,86.13,86.111,1.30981641]
[1773175426271,1.33330525,86.129,86.11,4.23831769]
[1773175426472,1.33330525,86.129,86.11,0.1]
[1773175427879,1.33094243,86.127,86.11,4.23831769]
[1773175430675,1.33094243,86.127,86.11,5.51309267]
[1773175431788,1.2304599,86.119,86.082,11.61683046]
[1773175431974,1.2304599,86.119,86.064,0.28871378]
[1773175431975,1.2304599,86.117,86.083,1.27477498]
[1773175432171,1.2304599,86.115,86.08,4.13831769]
[1773175432466,1.2304599,86.115,86.04,8.96309338]
[1773175432467,1.2304599,86.113,86.09,4.13831769]
[1773175432672,1.2304599,86.111,86.09,15.75406393]
[1773175432872,1.2304599,86.111,86.091,1.27477498]
[1773175434670,12.84351297,86.11,86.091,1.27477498]
[1773175434877,1.2304599,86.109,86.081,1.27477498]
[1773175435086,1.2304599,86.108,86.09,4.13831769]
[1773175435686,1.2304599,86.108,86.087,1.27477498]
[1773175436082,1.2304599,86.106,86.081,1.27477498]
[1773175436269,1.2304599,86.106,86.08,15.75541806]
[1773175436270,1.2304599,86.106,86.09,4.13831769]
[1773175437882,67.33933217,86.113,86.101,1.27477498]
[1773175438095,1.2304599,86.112,86.1,4.13831769]
[1773175438581,67.33933217,86.113,86.1,5.41309267]
[1773175440068,67.33933217,86.113,86.101,1.27477498]
[1773175440478,1.2304599,86.131,86.102,1.27477498]
[1773175440678,53.87146574,86.122,86.111,1.27477498]
[1773175440872,1.2304599,86.121,86.101,11.61426696]
[1773175442477,1.2304599,86.121,86.102,1.27477498]
[1773175443780,5.3,86.12,86.102,1.27477498]
[1773175446291,1.2304599,86.119,86.091,1.27477498]
[1773175446801,5.3,86.12,86.101,1.27477498]
[1773175447803,49.73314805,86.122,86.112,1.27477498]
[1773175448095,49.73314805,86.122,86.114,1.27477498]
[1773175448096,48.64494933,86.122,86.114,1.27477498]
[1773175449113,48.64494933,86.122,86.115,11.61237879]
[1773175450885,1.2304599,86.135,86.116,1.27477498]
[1773175451087,1.2304599,86.135,86.12,4.13831769]
[1773175451407,12.84027716,86.134,86.12,4.13831769]
[1773175451787,1.2304599,86.133,86.12,4.13831769]
[1773175452593,1.2304599,86.133,86.114,11.61249011]
[1773175452923,1.2304599,86.131,86.1,4.13831769]
[1773175453093,1.2304599,86.129,86.11,4.13831769]
[1773175453295,1.2304599,86.126,86.11,4.13831769]
[1773175455410,1.2304599,86.124,86.1,5.41309267]
[1773175455920,1.2304599,86.124,86.101,1.27477498]
[1773175457012,1.2304599,86.124,86.11,4.13831769]
[1773175457401,1.2304599,86.124,86.103,1.27477498]
[1773175457603,1.2304599,86.124,86.11,4.13831769]
[1773175457815,1.2304599,86.124,86.103,1.27477498]
[1773175458506,1.2304599,86.124,86.104,11.6138623]
[1773175459206,1.2304599,86.123,86.104,11.6138623]
[1773175459914,1.2304599,86.123,86.104,12.88279359]
[1773175462721,11.60927813,86.138,86.105,1.26893129]
[1773175462919,1.295137,86.136,86.12,4.13831769]
[1773175463535,1.295137,86.136,86.088,0.2884018]
[1773175463536,1.295137,86.136,86.111,1.26893129]
[1773175464819,11.60968247,86.135,86.112,11.61278335]
[1773175464998,1.295137,86.134,86.112,11.61278335]
[1773175465403,1.295137,86.129,86.09,1.26893129]
[1773175465622,1.295137,86.127,86.091,1.26893129]
[1773175466401,1.295137,86.127,86.1,4.14244344]
[1773175467217,1.295137,86.125,86.1,4.14244344]
[1773175467423,1.295137,86.125,86.098,1.26893129]
[1773175469322,1.45132825,86.128,86.066,0.43108108]
[1773175469323,1.295137,86.123,86.082,1.26893129]